bitfinex/quotes_BTCUSD_20251009
["timestamp","ask_amount","ask_price","bid_price","bid_amount"]
[1759984466596,2.08477834,122210.0,122200.0,1e-08]
[1759984466981,1.85365834,122210.0,122200.0,1e-08]
[1759984467191,2.95166385,122210.0,122200.0,1e-08]
[1759984467401,2.18858909,122210.0,122200.0,1e-08]
[1759984467778,1.95746854,122210.0,122200.0,1e-08]
[1759984467988,2.18092424,122210.0,122200.0,1e-08]
[1759984468161,2.18858803,122210.0,122200.0,1e-08]
[1759984470865,1.95746803,122210.0,122200.0,1e-08]
[1759984471073,2.18858803,122210.0,122200.0,1e-08]
[1759984471280,2.18858021,122210.0,122200.0,1e-08]
[1759984472117,1.95746021,122210.0,122200.0,1e-08]
[1759984472337,2.18858021,122210.0,122200.0,1e-08]
[1759984477059,1.98369552,122210.0,122200.0,1e-08]
[1759984477259,2.21481552,122210.0,122200.0,1e-08]
[1759984478268,2.18858021,122210.0,122200.0,1e-08]
[1759984478466,1.95746021,122210.0,122200.0,1e-08]
[1759984478680,2.18858021,122210.0,122200.0,1e-08]
[1759984479492,2.18857878,122210.0,122200.0,1e-08]
[1759984479689,1.95745878,122210.0,122200.0,1e-08]
[1759984479898,2.18857878,122210.0,122200.0,1e-08]
[1759984482966,1.95745878,122210.0,122200.0,1e-08]
[1759984483190,2.18857878,122210.0,122200.0,1e-08]
[1759984485317,2.23770878,122210.0,122200.0,1e-08]
[1759984485529,2.18857878,122210.0,122200.0,1e-08]
[1759984486988,1.95745878,122210.0,122200.0,1e-08]
[1759984487197,2.18857878,122210.0,122200.0,1e-08]
[1759984488499,2.18858873,122210.0,122200.0,1e-08]
[1759984491829,1.37284619,122210.0,122200.0,1e-08]
[1759984492047,1.58631326,122210.0,122200.0,1e-08]
[1759984492244,1.68631325,122210.0,122200.0,1e-08]
[1759984495110,1.68631964,122210.0,122200.0,1e-08]
[1759984497631,1.45519964,122210.0,122200.0,1e-08]
[1759984497848,1.76631644,122210.0,122200.0,1e-08]
[1759984498510,1.53519644,122210.0,122200.0,1e-08]
[1759984498733,1.76631644,122210.0,122200.0,1e-08]
[1759984500062,1.66631645,122210.0,122200.0,1e-08]
[1759984500545,1.76631644,122210.0,122200.0,1e-08]
[1759984501225,2.08479219,122210.0,122200.0,1e-08]
[1759984501711,2.1110275,122210.0,122200.0,1e-08]
[1759984501938,2.1971775,122210.0,122200.0,1e-08]
[1759984502388,2.21484638,122210.0,122200.0,1e-08]
[1759984502611,1.98372638,122210.0,122200.0,1e-08]
[1759984502837,2.21484638,122210.0,122200.0,1e-08]
[1759984505492,1.98372638,122210.0,122200.0,1e-08]
[1759984505707,2.18861107,122210.0,122200.0,1e-08]
[1759984508770,1.95749107,122210.0,122200.0,1e-08]
[1759984509010,1.78398532,122210.0,122200.0,1e-08]
[1759984509894,1.76631644,122210.0,122200.0,1e-08]
[1759984510358,1.78398729,122210.0,122200.0,1e-08]
[1759984511282,1.76631644,122210.0,122200.0,1e-08]
[1759984511973,1.55404275,122210.0,122200.0,1e-08]
[1759984512458,1.14292596,122210.0,122200.0,1e-08]
[1759984512730,0.92592391,122210.0,122200.0,1e-08]
[1759984513012,1.26592391,122210.0,122200.0,1e-08]
[1759984513281,1.03480391,122210.0,122200.0,1e-08]
[1759984513521,0.69480391,122210.0,122200.0,1e-08]
[1759984513753,0.77480071,122210.0,122200.0,1e-08]
[1759984513984,1.11480071,122210.0,122200.0,1e-08]
[1759984514636,1.11473877,122210.0,122200.0,1e-08]
[1759984516856,1.11786403,122210.0,122200.0,1e-08]
[1759984517123,1.77362184,122210.0,122200.0,1e-08]
[1759984517324,1.79862183,122210.0,122200.0,1e-08]
[1759984517882,1.56754183,122210.0,122200.0,1e-08]
[1759984518145,1.79862183,122210.0,122200.0,1e-08]
[1759984518391,1.87861863,122210.0,122200.0,1e-08]
[1759984521013,1.37394402,122210.0,122200.0,1e-08]
[1759984521421,1.14286402,122210.0,122200.0,1e-08]
[1759984521856,1.37394402,122210.0,122200.0,1e-08]
[1759984522489,1.14286402,122210.0,122200.0,1e-08]
[1759984522757,0.61006416,122210.0,122200.0,1e-08]
[1759984522991,0.27006416,122210.0,122200.0,1e-08]
[1759984523236,0.67940584,122210.0,122200.0,1e-08]
[1759984523487,0.24705785,122210.0,122200.0,1e-08]
[1759984523666,0.24705785,122210.0,122200.0,0.08512001]
[1759984523867,0.24705785,122210.0,122200.0,0.24968001]
[1759984524334,0.24305785,122210.0,122200.0,0.24968001]
[1759984524556,0.23905785,122210.0,122200.0,0.24968001]
[1759984525868,0.24205785,122210.0,122200.0,0.31620001]
[1759984526151,0.23905785,122210.0,122200.0,0.31620001]
[1759984526585,0.24105785,122210.0,122200.0,0.31620001]
[1759984529097,0.24105785,122210.0,122200.0,0.08512001]
[1759984529308,0.24105785,122210.0,122200.0,0.31620001]
[1759984530125,0.19374078,122210.0,122200.0,0.10945001]
[1759984530345,0.19374078,122210.0,122200.0,0.35685662]
[1759984530546,0.21674078,122210.0,122200.0,0.10945001]
[1759984530789,0.21674078,122210.0,122200.0,0.32449001]
[1759984531006,0.21674078,122210.0,122200.0,0.00833001]
[1759984531216,0.21674078,122210.0,122200.0,0.32453001]
[1759984531644,0.19022651,122210.0,122200.0,0.21949207]
[1759984531873,0.16365272,122210.0,122200.0,1.038876]
[1759984532120,0.16365272,122210.0,122200.0,0.61419819]
[1759984532327,0.16465272,122210.0,122200.0,0.61419819]
[1759984532537,0.18018272,122210.0,122200.0,0.58927819]
[1759984534818,0.18018272,122210.0,122200.0,0.35823819]
[1759984535025,0.18018272,122210.0,122200.0,0.58935819]
[1759984536874,0.18018272,122210.0,122200.0,0.10945207]
[1759984537121,0.21644272,122210.0,122200.0,0.08512207]
[1759984537357,0.68224476,122210.0,122200.0,0.00200001]
[1759984537560,0.68224476,122210.0,122200.0,0.31824001]
[1759984537770,0.64112053,122210.0,122200.0,0.31824001]
[1759984538721,0.66569465,122210.0,122200.0,0.31824001]
[1759984539140,0.66569465,122210.0,122200.0,0.23316001]
[1759984539358,0.66569465,122210.0,122200.0,0.31828001]
[1759984539570,0.66569465,122210.0,122200.0,0.08712001]
[1759984539755,0.66569465,122210.0,122200.0,0.31828001]
[1759984542005,0.24101684,122210.0,122200.0,0.08712001]
[1759984542211,0.001,122210.0,122200.0,1.05435261]
[1759984542423,0.001,122210.0,122200.0,0.61330819]
[1759984542647,0.16465272,122210.0,122200.0,0.61330819]
[1759984543060,0.001,122210.0,122200.0,0.61330819]
[1759984543329,0.16465272,122210.0,122200.0,0.61330819]
[1759984544869,0.16465272,122210.0,122200.0,0.38214819]
[1759984545085,0.16465272,122210.0,122200.0,0.61330819]
[1759984546391,0.001,122210.0,122200.0,0.64346009]
[1759984552874,0.001,122210.0,122200.0,0.32718009]
[1759984553118,0.001,122210.0,122200.0,0.98394009]
[1759984554946,0.16465272,122210.0,122200.0,0.98394009]
[1759984555418,0.16465272,122210.0,122200.0,0.32718009]
[1759984555633,0.21574272,122210.0,122200.0,0.11527397]
[1759984555872,0.21574272,122210.0,122200.0,0.51002009]
[1759984556120,0.21574272,122210.0,122200.0,0.59514009]
[1759984557093,0.19174272,122210.0,122200.0,0.61995009]
[1759984559248,0.19174272,122210.0,122200.0,0.30375009]
[1759984559460,0.19174272,122210.0,122200.0,0.61995009]
[1759984560347,0.19174272,122210.0,122200.0,0.37112397]
[1759984560566,0.19174272,122210.0,122200.0,0.61991009]
[1759984561015,0.21574272,122210.0,122200.0,0.08512207]
[1759984561240,0.21574272,122210.0,122200.0,0.56494819]
[1759984561690,0.21574272,122210.0,122200.0,0.40128207]
[1759984562600,0.21574272,122210.0,122200.0,0.56494819]
[1759984563743,0.21574272,122210.0,122200.0,0.08512207]
[1759984563972,0.21574272,122210.0,122200.0,0.40128207]
[1759984568026,0.21574272,122210.0,122200.0,0.08512207]
[1759984568250,0.21574272,122210.0,122200.0,0.10348662]
[1759984568476,0.21574272,122210.0,122200.0,0.33452662]
[1759984568691,0.21574272,122210.0,122200.0,0.08712001]
[1759984568917,0.21574272,122210.0,122200.0,0.33452662]
[1759984569133,0.21574272,122210.0,122200.0,0.31816001]
[1759984569370,0.21574272,122210.0,122200.0,0.35886819]
[1759984569371,0.19174272,122210.0,122200.0,0.35886819]
[1759984569596,0.16465272,122210.0,122200.0,0.61449819]
[1759984571161,0.18026272,122210.0,122200.0,0.19520207]
[1759984571376,0.18026272,122210.0,122200.0,0.42628207]
[1759984571600,0.19257272,122210.0,122200.0,0.42628207]
[1759984571855,0.21697272,122210.0,122200.0,0.42628207]
[1759984572754,0.19257272,122210.0,122200.0,0.35886819]
[1759984572969,0.19257272,122210.0,122200.0,0.58990819]
[1759984573259,0.19257272,122210.0,122200.0,0.42624207]
[1759984575893,0.21697272,122210.0,122200.0,0.42624207]
[1759984580929,0.19257272,122210.0,122200.0,0.42624207]
[1759984581142,0.21697272,122210.0,122200.0,0.42624207]
[1759984584357,0.21697272,122210.0,122200.0,0.40961207]
[1759984585742,0.53527904,122210.0,122200.0,0.40128207]
[1759984590173,1.31808351,122210.0,122200.0,0.00200001]
[1759984590391,1.70723792,122210.0,122200.0,1e-08]
[1759984590599,0.16369291,122180.0,122160.0,0.0004]
[1759984590806,0.49432263,122170.0,122160.0,0.08352206]
[1759984591020,0.54259946,122170.0,122160.0,0.40124206]
[1759984591902,0.58609675,122170.0,122160.0,0.40239278]
[1759984593180,0.58609675,122170.0,122160.0,0.40139278]
[1759984593976,0.58609675,122170.0,122160.0,0.08667278]
[1759984594386,0.58609675,122170.0,122160.0,0.29767278]
[1759984594796,0.58609675,122170.0,122160.0,0.29467278]
[1759984595256,0.90440307,122170.0,122160.0,0.00055072]
[1759984595538,0.90440307,122170.0,122160.0,0.10427072]
[1759984595762,0.58609675,122170.0,122160.0,0.10427072]
[1759984596699,0.90540307,122170.0,122160.0,0.08667072]
[1759984596894,0.22529314,122170.0,122160.0,0.31919072]
[1759984597098,0.53533263,122170.0,122160.0,0.32122947]
[1759984597959,0.54334628,122170.0,122160.0,0.32122947]
[1759984601127,0.56792901,122170.0,122160.0,0.32122947]
[1759984602468,0.56705044,122170.0,122160.0,0.32122947]
[1759984603715,0.90080966,122170.0,122160.0,0.00358947]
[1759984603923,0.90080966,122170.0,122160.0,0.08870947]
[1759984604136,0.90080966,122170.0,122160.0,0.17494947]
[1759984605196,0.16373311,122150.0,122140.0,0.0004]
[1759984605449,1.51894503,122150.0,122140.0,0.16476]
[1759984605661,1.23937871,122150.0,122140.0,0.16476]
[1759984605878,1.26396501,122150.0,122140.0,0.16476]
[1759984606096,1.58227133,122150.0,122140.0,0.0004]
[1759984606308,0.16374652,122140.0,122130.0,0.0004]
[1759984606512,1.22615574,122140.0,122130.0,0.07192]
[1759984606723,1.26489574,122140.0,122130.0,0.07192]
[1759984607529,1.60489574,122140.0,122130.0,0.0004]
[1759984607742,1.60489574,122140.0,122130.0,0.0044]
[1759984607952,1.60489574,122140.0,122130.0,0.0054]
[1759984608367,1.61250314,122140.0,122130.0,0.0054]
[1759984608691,1.61250314,122140.0,122130.0,0.0014]
[1759984608780,1.6956252,122140.0,122130.0,0.0014]
[1759984609078,1.6956252,122140.0,122130.0,0.0062]
[1759984609304,1.6956252,122140.0,122130.0,0.0014]
[1759984609786,1.6986252,122140.0,122130.0,0.0004]
[1759984610012,1.7026252,122140.0,122130.0,0.0004]
[1759984610631,2.68254415,122140.0,122130.0,1e-08]
[1759984610842,1.85376863,122140.0,122130.0,1e-08]
[1759984611054,2.08636863,122140.0,122130.0,1e-08]
[1759984611467,3.01514414,122140.0,122130.0,1e-08]
[1759984611879,1.82762518,122140.0,122130.0,1e-08]
[1759984612131,2.06022518,122140.0,122130.0,1e-08]
[1759984612344,1.82762518,122140.0,122130.0,1e-08]
[1759984612525,2.06022518,122140.0,122130.0,1e-08]
[1759984613612,1.82762518,122140.0,122130.0,1e-08]
[1759984614252,2.06022518,122140.0,122130.0,1e-08]
[1759984614477,1.82762518,122140.0,122130.0,1e-08]
[1759984614611,2.06018518,122140.0,122130.0,1e-08]
[1759984614830,2.06022518,122140.0,122130.0,1e-08]
[1759984615847,1.83682518,122140.0,122130.0,1e-08]
[1759984616265,1.83682518,122140.0,122130.0,0.0015297]
[1759984617212,1.83682518,122140.0,122130.0,1e-08]
[1759984618420,1.14367887,122130.0,122120.0,1e-08]
[1759984618577,1.34189859,122130.0,122120.0,1e-08]
[1759984618791,1.38063859,122130.0,122120.0,1e-08]
[1759984619194,1.08692857,122130.0,122120.0,1e-08]
[1759984619601,1.09092857,122130.0,122120.0,1e-08]
[1759984621351,1.40923489,122130.0,122120.0,1e-08]
[1759984624067,1.40923489,122130.0,122120.0,0.00051001]
[1759984624194,1.09092857,122130.0,122120.0,0.00051001]
[1759984625210,1.40923489,122130.0,122120.0,0.00051001]
[1759984626452,1.42683389,122130.0,122120.0,0.00051001]
[1759984627179,1.65923389,122130.0,122120.0,1e-08]
[1759984627751,1.75927388,122130.0,122120.0,1e-08]
[1759984627958,2.09927388,122130.0,122120.0,1e-08]
[1759984628160,2.09727388,122130.0,122120.0,1e-08]
[1759984628375,1.89083717,122130.0,122120.0,1e-08]
[1759984628578,2.10127388,122130.0,122120.0,1e-08]
[1759984628788,2.09927388,122130.0,122120.0,1e-08]
[1759984628987,2.10527388,122130.0,122120.0,1e-08]
[1759984629204,1.87283388,122130.0,122120.0,1e-08]
[1759984629413,2.12727717,122130.0,122120.0,1e-08]
[1759984629837,1.89483717,122130.0,122120.0,1e-08]
[1759984630048,2.12727717,122130.0,122120.0,1e-08]
[1759984631695,0.93991821,122130.0,122120.0,1e-08]
[1759984631931,1.92285864,122130.0,122120.0,1e-08]
[1759984632165,2.02285863,122130.0,122120.0,1e-08]
[1759984633495,2.0522814,122130.0,122120.0,1e-08]
[1759984634475,1.03931374,122120.0,122110.0,0.0004]
[1759984634712,1.27668476,122120.0,122110.0,0.0004]
[1759984635074,1.31694476,122120.0,122110.0,0.0004]
[1759984635287,1.34154316,122120.0,122110.0,0.0004]
[1759984635696,0.49400274,122120.0,122110.0,0.0004]
[1759984635865,1.34654316,122120.0,122110.0,0.0004]
[1759984636316,1.40725877,122120.0,122110.0,0.0004]
[1759984637476,1.43668154,122120.0,122110.0,0.0004]
[1759984639911,1.43668154,122120.0,122110.0,0.00091007]
[1759984642681,1.37596593,122120.0,122110.0,0.00091007]
[1759984643494,1.82126593,122120.0,122110.0,0.00091007]
[1759984645206,0.97072551,122120.0,122110.0,0.00091007]
[1759984645407,1.82126593,122120.0,122110.0,0.00091007]
[1759984645832,1.88227013,122120.0,122110.0,0.00091007]
[1759984646519,1.85284736,122120.0,122110.0,0.00091007]
[1759984647788,1.86093122,122120.0,122110.0,0.00091007]
[1759984649415,1.83886892,122120.0,122110.0,0.00091007]
[1759984651076,2.07102892,122120.0,122110.0,0.00091007]
[1759984659888,1.77786472,122120.0,122110.0,0.00091007]
[1759984660105,0.70159076,122120.0,122110.0,0.00091007]
[1759984660317,0.67699236,122120.0,122110.0,0.00091007]
[1759984660528,1.01699236,122120.0,122110.0,0.00091007]
[1759984662303,0.9941174,122120.0,122110.0,0.00091007]
[1759984662533,1.0741142,122120.0,122110.0,0.00091007]
[1759984667535,0.9941174,122120.0,122110.0,0.00091007]
[1759984667754,0.56884719,122120.0,122110.0,0.01728874]
[1759984667953,0.56884719,122120.0,122110.0,0.23291007]
[1759984668157,0.22884719,122120.0,122110.0,0.23291007]
[1759984668363,0.6541174,122120.0,122110.0,0.00091007]
[1759984668585,0.6541174,122120.0,122110.0,0.31811007]
[1759984668759,0.6511174,122120.0,122110.0,0.31811007]
[1759984668975,0.6491174,122120.0,122110.0,0.31811007]
[1759984669317,0.71006113,122120.0,122110.0,0.32011007]
[1759984670423,0.71006113,122120.0,122110.0,0.57011007]
[1759984671061,0.71006113,122120.0,122110.0,0.48487007]
[1759984671262,0.71006113,122120.0,122110.0,0.57007007]
[1759984672000,0.71006113,122120.0,122110.0,0.25291007]
[1759984672236,0.6501174,122120.0,122110.0,0.25291007]
[1759984672446,1.41538761,122120.0,122110.0,0.25291007]
[1759984672625,1.43998296,122120.0,122110.0,0.25291007]
[1759984672844,1.44764737,122120.0,122110.0,0.25291007]
[1759984673051,0.16378674,122110.0,122100.0,0.1]
[1759984673255,0.61645695,122110.0,122100.0,0.1864]
[1759984673482,0.64039695,122110.0,122100.0,0.1864]
[1759984673681,0.98039695,122110.0,122100.0,0.1864]
[1759984673894,1.08338664,122110.0,122100.0,0.1864]
[1759984674039,1.10798417,122110.0,122100.0,0.1864]
[1759984674244,1.10798417,122110.0,122100.0,0.1005029]
[1759984674531,1.02798737,122110.0,122100.0,0.3321829]
[1759984674695,1.02798737,122110.0,122100.0,0.3361829]
[1759984675533,0.55612674,122110.0,122100.0,0.3361829]
[1759984675750,0.55612674,122110.0,122100.0,0.3321829]
[1759984675949,0.55612674,122110.0,122100.0,0.3341829]
[1759984676396,1.06139375,122110.0,122100.0,0.3341829]
[1759984676614,1.06139375,122110.0,122100.0,0.3345829]
[1759984676833,1.07672391,122110.0,122100.0,0.3345829]
[1759984677316,1.10132108,122110.0,122100.0,0.3345829]
[1759984678664,1.10132108,122110.0,122100.0,0.33509302]
[1759984679737,1.10132108,122110.0,122100.0,0.10301302]
[1759984679964,1.10132108,122110.0,122100.0,0.33505302]
[1759984680193,1.10132108,122110.0,122100.0,0.10301302]
[1759984680615,1.10132108,122110.0,122100.0,0.19741302]
[1759984681023,1.10132108,122110.0,122100.0,0.33505302]
[1759984681231,1.1013231,122110.0,122100.0,0.33505302]
[1759984681444,1.1013231,122110.0,122100.0,0.10301302]
[1759984681685,1.1013231,122110.0,122100.0,0.33505302]
[1759984682122,1.1013231,122110.0,122100.0,0.33501302]
[1759984683203,1.1013231,122110.0,122100.0,0.33509302]
[1759984685472,1.10899054,122110.0,122100.0,0.33509302]
[1759984685891,1.10899054,122110.0,122100.0,0.10301302]
[1759984686092,1.10899054,122110.0,122100.0,0.33505302]
[1759984686512,1.10899054,122110.0,122100.0,0.10301302]
[1759984686686,1.10899054,122110.0,122100.0,0.33505302]
[1759984689081,1.1921126,122110.0,122100.0,0.10301302]
[1759984689327,1.1921126,122110.0,122100.0,0.33501302]
[1759984689540,1.1921126,122110.0,122100.0,0.10301302]
[1759984689746,1.1921126,122110.0,122100.0,0.33501302]
[1759984690035,1.1921126,122110.0,122100.0,0.10301302]
[1759984690235,1.1921126,122110.0,122100.0,0.33501302]
[1759984691288,1.1921126,122110.0,122100.0,0.10301302]
[1759984691497,1.1921126,122110.0,122100.0,0.33497302]
[1759984691922,1.40477327,122110.0,122100.0,0.33497302]
[1759984692533,1.40477308,122110.0,122100.0,0.33497302]
[1759984692953,1.40477308,122110.0,122100.0,0.10301302]
[1759984693160,1.40477308,122110.0,122100.0,0.33497302]
[1759984695659,0.7668422,122110.0,122100.0,0.33497302]
[1759984695881,1.00581084,122110.0,122100.0,0.33497302]
[1759984696098,1.32477877,122110.0,122100.0,0.33497302]
[1759984696335,1.00581333,122110.0,122100.0,0.33497302]
[1759984698060,0.68684789,122110.0,122100.0,0.33497302]
[1759984698269,1.08581013,122110.0,122100.0,0.33497302]
[1759984698468,1.08581013,122110.0,122100.0,0.33489302]
[1759984698762,1.40477557,122110.0,122100.0,0.33489302]
[1759984700260,1.40477557,122110.0,122100.0,0.10301302]
[1759984700461,1.32477877,122110.0,122100.0,0.33489302]
[1759984705478,1.00581333,122110.0,122100.0,0.33489302]
[1759984706857,1.0058349,122110.0,122100.0,0.33489302]
[1759984707490,1.32480034,122110.0,122100.0,0.33489302]
[1759984708531,1.00584624,122110.0,122100.0,0.33489302]
[1759984708920,1.08584304,122110.0,122100.0,0.33489302]
[1759984710620,0.23148298,122110.0,122100.0,0.66896846]
[1759984710809,0.23148298,122110.0,122100.0,0.33477302]
[1759984710810,0.55009842,122110.0,122100.0,0.33477302]
[1759984711031,0.55009842,122110.0,122100.0,0.42005302]
[1759984712366,0.55009842,122110.0,122100.0,0.18821302]
[1759984712585,0.53474218,122110.0,122100.0,0.42005302]
[1759984712803,0.63008778,122110.0,122100.0,0.42005302]
[1759984713250,0.63008778,122110.0,122100.0,0.42001302]
[1759984715929,0.61473898,122110.0,122100.0,0.10301302]
[1759984716133,0.93370442,122110.0,122100.0,0.42001302]
[1759984716356,0.93370442,122110.0,122100.0,0.41997302]
[1759984717477,0.63008121,122110.0,122100.0,0.41997302]
[1759984717697,0.93370442,122110.0,122100.0,0.41997302]
[1759984717911,0.61473898,122110.0,122100.0,0.18821302]
[1759984718128,0.61473898,122110.0,122100.0,0.42009302]
[1759984718790,0.29577354,122110.0,122100.0,0.42009302]
[1759984719058,0.61473898,122110.0,122100.0,0.42009302]
[1759984721877,0.55008253,122110.0,122100.0,0.42009302]
[1759984722093,0.52649253,122110.0,122100.0,0.44366302]
[1759984722329,0.55050253,122110.0,122100.0,0.44366302]
[1759984722518,0.55050253,122110.0,122100.0,0.42721302]
[1759984722941,0.21619674,122110.0,122100.0,0.42009302]
[1759984723300,0.55049997,122110.0,122100.0,0.42009302]
[1759984723387,0.53516218,122110.0,122100.0,0.42009302]
[1759984724918,0.61437695,122110.0,122100.0,0.42009302]
[1759984725565,0.29541151,122110.0,122100.0,0.42009302]
[1759984725811,0.61437695,122110.0,122100.0,0.42009302]
[1759984726482,0.53516218,122110.0,122100.0,0.43597302]
[1759984726905,0.53516218,122110.0,122100.0,0.42009302]
[1759984733331,0.55049956,122110.0,122100.0,0.42009302]
[1759984735175,0.23153412,122110.0,122100.0,0.42009302]
[1759984735387,0.55049956,122110.0,122100.0,0.42009302]
[1759984735641,0.60182355,122110.0,122100.0,0.42009302]
[1759984736903,0.60182536,122110.0,122100.0,0.42009302]
[1759984737661,0.52649401,122110.0,122100.0,0.20409302]
[1759984737878,0.52649401,122110.0,122100.0,0.44293302]
[1759984738284,0.54943401,122110.0,122100.0,0.42705302]
[1759984742108,0.54943401,122110.0,122100.0,0.41993302]
[1759984745276,0.54943401,122110.0,122100.0,0.18821302]
[1759984745486,0.54943401,122110.0,122100.0,0.41985302]
[1759984746996,0.23046857,122110.0,122100.0,0.41985302]
[1759984747221,0.54943401,122110.0,122100.0,0.41985302]
[1759984752038,0.23046857,122110.0,122100.0,0.41985302]
[1759984754438,0.23048555,122110.0,122100.0,0.41985302]
[1759984757800,0.23048555,122110.0,122100.0,0.35201318]
[1759984758020,0.16478674,122110.0,122100.0,1.1388986]
[1759984758448,0.001,122110.0,122100.0,1.1690505]
[1759984758582,0.001,122110.0,122100.0,0.9374505]
[1759984758781,0.16377378,122120.0,122110.0,0.19393864]
[1759984759002,0.16377378,122120.0,122110.0,0.3273107]
[1759984759615,0.20891196,122130.0,122110.0,0.5589107]
[1759984759827,0.00136405,122130.0,122120.0,0.27160272]
[1759984760026,0.00136405,122130.0,122120.0,0.98202065]
[1759984760649,0.00136405,122130.0,122120.0,0.990204]
[1759984760798,0.00136405,122130.0,122120.0,1.099404]
[1759984761001,0.00136405,122130.0,122120.0,1.331044]
[1759984761706,0.00136405,122130.0,122120.0,1.39392627]
[1759984761909,0.00136405,122130.0,122120.0,1.39492627]
[1759984763282,0.00136405,122130.0,122120.0,1.16328627]
[1759984763486,0.00136405,122130.0,122120.0,1.39492627]
[1759984763703,0.00136405,122130.0,122120.0,1.50328627]
[1759984763918,0.00136405,122130.0,122120.0,1.73492627]
[1759984764571,0.00136405,122130.0,122120.0,1.50328627]
[1759984764781,0.00136405,122130.0,122120.0,1.73492627]
[1759984765224,0.00136405,122130.0,122120.0,1.58760963]
[1759984765434,0.00136405,122130.0,122120.0,1.82004627]
[1759984765647,0.00136405,122130.0,122120.0,1.81904627]
[1759984766073,0.00136405,122130.0,122120.0,1.59240627]
[1759984766311,0.00136405,122130.0,122120.0,1.82404627]
[1759984766508,0.00136405,122130.0,122120.0,1.82304627]
[1759984766752,0.00136405,122130.0,122120.0,1.82604627]
[1759984767187,0.00136405,122130.0,122120.0,1.81804627]
[1759984767388,0.00136405,122130.0,122120.0,1.82204627]
[1759984767631,0.00136405,122130.0,122120.0,1.59740627]
[1759984767852,0.00136405,122130.0,122120.0,1.82904627]
[1759984771815,0.00136405,122130.0,122120.0,1.82900627]
[1759984772043,0.00136405,122130.0,122120.0,2.02252963]
[1759984772261,0.00136405,122130.0,122120.0,2.27867097]
[1759984772477,0.00136405,122130.0,122120.0,2.04711097]
[1759984772691,0.00136405,122130.0,122120.0,2.27867097]
[1759984774952,0.00136405,122130.0,122120.0,2.19343097]
[1759984775167,0.00136405,122130.0,122120.0,2.27859097]
[1759984775369,0.00136405,122130.0,122120.0,2.04707097]
[1759984775581,0.00136405,122130.0,122120.0,2.27859097]
[1759984775786,0.00136405,122130.0,122120.0,1.19606761]
[1759984775998,0.00136405,122130.0,122120.0,1.85346761]
[1759984777647,0.00136405,122130.0,122120.0,1.19606761]
[1759984777861,0.00136405,122130.0,122120.0,1.85338761]
[1759984778485,0.00136405,122130.0,122120.0,1.19606761]
[1759984778693,0.00136405,122130.0,122120.0,1.85338761]
[1759984779108,0.00136405,122130.0,122120.0,1.19606761]
[1759984779316,0.00136405,122130.0,122120.0,1.85338761]
[1759984780910,0.00136405,122130.0,122120.0,1.19606761]
[1759984781130,0.00136405,122130.0,122120.0,1.85338761]
[1759984794075,0.00136405,122130.0,122120.0,0.77094425]
[1759984794277,0.01670954,122130.0,122120.0,1.40368291]
[1759984794895,0.00136405,122130.0,122120.0,1.59732627]
[1759984795077,0.00136405,122130.0,122120.0,1.82880627]
[1759984801064,0.00136405,122130.0,122120.0,0.74636291]
[1759984801286,0.21788397,122130.0,122120.0,0.59017433]
[1759984801501,0.23322946,122130.0,122120.0,0.92354539]
[1759984801744,0.23322946,122130.0,122120.0,0.69206539]
[1759984802091,0.28265153,122130.0,122120.0,0.09012206]
[1759984802306,0.66602637,122130.0,122120.0,0.40676206]
[1759984802510,0.66602637,122130.0,122120.0,0.40976206]
[1759984802891,0.66602637,122130.0,122120.0,0.40676206]
[1759984803443,0.21638301,122130.0,122120.0,0.43011206]
[1759984803663,0.18814301,122130.0,122120.0,0.61187539]
[1759984804137,0.18814301,122130.0,122120.0,0.61587539]
[1759984804264,0.18046946,122130.0,122120.0,0.61687539]
[1759984804460,0.18046946,122130.0,122120.0,0.22162206]
[1759984804662,0.18046946,122130.0,122120.0,0.45510206]
[1759984805089,0.19634946,122130.0,122120.0,0.43011206]
[1759984805587,0.23322946,122130.0,122120.0,0.41509206]
[1759984805811,0.23322946,122130.0,122120.0,0.40676206]
[1759984806370,0.21788397,122130.0,122120.0,0.40676206]
[1759984808409,0.64300733,122130.0,122120.0,0.09216]
[1759984808622,0.65831473,122130.0,122120.0,0.007]
[1759984808831,0.65831473,122130.0,122120.0,0.23848]
[1759984809254,0.65831473,122130.0,122120.0,0.23748]
[1759984810081,0.65831473,122130.0,122120.0,0.23148]
[1759984810743,0.99831473,122130.0,122120.0,0.23148]
[1759984810950,1.07831153,122130.0,122120.0,0.23148]
[1759984811134,1.08031153,122130.0,122120.0,0.23148]
[1759984811397,1.08131153,122130.0,122120.0,0.23148]
[1759984811862,1.10590311,122130.0,122120.0,0.23148]
[1759984813819,0.16378674,122110.0,122100.0,0.10101302]
[1759984814033,0.19160674,122110.0,122100.0,0.51740508]
[1759984814257,0.16378674,122110.0,122100.0,0.47956524]
[1759984814493,0.16378674,122110.0,122100.0,0.79841421]
[1759984814703,0.16378674,122110.0,122100.0,1.02993421]
[1759984814884,0.16378674,122110.0,122100.0,1.03093421]
[1759984815262,0.16378674,122110.0,122100.0,1.03293421]
[1759984816048,0.16378674,122110.0,122100.0,0.86913405]
[1759984816900,0.16378674,122110.0,122100.0,1.03293421]
[1759984818726,0.16378674,122110.0,122100.0,0.80141421]
[1759984818956,0.16378674,122110.0,122100.0,1.03293421]
[1759984819144,0.16378674,122110.0,122100.0,0.80141421]
[1759984819346,0.16378674,122110.0,122100.0,1.03293421]
[1759984820603,0.01142,122120.0,122110.0,0.16378674]
[1759984820824,0.00136405,122130.0,122120.0,0.19392523]
[1759984821046,0.16512397,122130.0,122120.0,0.62081626]
[1759984821268,0.00136405,122130.0,122120.0,0.32472729]
[1759984821710,0.16512397,122130.0,122120.0,0.32472729]
[1759984821992,0.60167015,122130.0,122110.0,0.01033]
[1759984822256,0.4940423,122120.0,122110.0,0.42388206]
[1759984822515,0.5334923,122120.0,122110.0,0.08312206]
[1759984822757,0.5334923,122120.0,122110.0,0.16828206]
[1759984823599,0.5334923,122120.0,122110.0,0.39992206]
[1759984824048,0.5334923,122120.0,122110.0,0.16828206]
[1759984824515,0.5334923,122120.0,122110.0,0.39992206]
[1759984824739,0.5334923,122120.0,122110.0,0.16828206]
[1759984824962,0.5334923,122120.0,122110.0,0.39992206]
[1759984828029,0.5334923,122120.0,122110.0,0.3320688]
[1759984828232,0.21464333,122120.0,122110.0,0.5636688]
[1759984829694,0.21464333,122120.0,122110.0,0.3320688]
[1759984829908,0.21464333,122120.0,122110.0,0.5636688]
[1759984831231,0.19159333,122120.0,122110.0,0.5802588]
[1759984831455,0.19159333,122120.0,122110.0,0.5905888]
[1759984832157,0.01278405,122130.0,122120.0,0.16377333]
[1759984832422,0.53484294,122130.0,122120.0,0.08312206]
[1759984832650,0.55455126,122130.0,122120.0,0.08516]
[1759984832860,0.55455126,122130.0,122120.0,0.31696]
[1759984834659,0.56988611,122130.0,122120.0,0.31696]
[1759984839613,0.55017779,122130.0,122120.0,0.31696]